[Event "Titled Tuesday Blitz January 31 Late 2023"]
[White "Grycel, Kamil"]
[Black "Khoroshev, Nikita"]
[WhiteFideId "1115499"]
[BlackFideId "14200287"]
[WhiteElo "2315"]
[BlackElo "2336"]
[Result "0-1"]
[Round "04"]
[TimeControl "180+2"]
[Date "2023.01.31"]
[WhiteClock "0:00:20"]
[BlackClock "0:01:33"]

1. d4 {[%clk 0:03:00]}  Nf6 {[%clk 0:02:59]} 2. c4 {[%clk 0:03:00]}  g6 {[%clk 0:02:59]} 3. Nf3 {[%clk 0:02:59]}  Bg7 {[%clk 0:02:59]} 4. g3 {[%clk 0:03:00]}  d6 {[%clk 0:02:58]} 5. Bg2 {[%clk 0:03:00]}  O-O {[%clk 0:02:58]} 6. Nc3 {[%clk 0:03:00]}  Bf5 {[%clk 0:02:58]} 7. O-O {[%clk 0:02:55]}  c6 {[%clk 0:02:58]} 8. b3 {[%clk 0:02:55]}  Ne4 {[%clk 0:02:58]} 9. Bb2 {[%clk 0:02:50]}  Nxc3 {[%clk 0:02:58]} 10. Bxc3 {[%clk 0:02:50]}  Be4 {[%clk 0:02:59]} 11. Qd2 {[%clk 0:02:48]}  Nd7 {[%clk 0:02:58]} 12. Rfd1 {[%clk 0:02:48]}  d5 {[%clk 0:02:58]} 13. cxd5 {[%clk 0:02:44]}  cxd5 {[%clk 0:02:56]} 14. Rac1 {[%clk 0:02:42]}  Rc8 {[%clk 0:02:53]} 15. Bb4 {[%clk 0:02:36]}  Re8 {[%clk 0:02:43]} 16. Rxc8 {[%clk 0:02:29]}  Qxc8 {[%clk 0:02:44]} 17. Rc1 {[%clk 0:02:29]}  Qb8 {[%clk 0:02:44]} 18. Ne1 {[%clk 0:02:20]}  Bxg2 {[%clk 0:02:44]} 19. Nxg2 {[%clk 0:02:21]}  e6 {[%clk 0:02:36]} 20. e3 {[%clk 0:02:01]}  Rc8 {[%clk 0:02:34]} 21. Nf4 {[%clk 0:01:57]}  Rc6 {[%clk 0:02:24]} 22. Nd3 {[%clk 0:01:47]}  Qc8 {[%clk 0:02:24]} 23. Rxc6 {[%clk 0:01:42]}  Qxc6 {[%clk 0:02:25]} 24. Qc3 {[%clk 0:01:35]}  Qxc3 {[%clk 0:02:24]} 25. Bxc3 {[%clk 0:01:36]}  Bf8 {[%clk 0:02:23]} 26. Bb4 {[%clk 0:01:35]}  Bg7 {[%clk 0:02:21]} 27. Kf1 {[%clk 0:01:33]}  f6 {[%clk 0:02:21]} 28. Nc5 {[%clk 0:01:23]}  Nxc5 {[%clk 0:02:20]} 29. Bxc5 {[%clk 0:01:24]}  a6 {[%clk 0:02:21]} 30. Ke2 {[%clk 0:01:23]}  h6 {[%clk 0:02:20]} 31. Kd3 {[%clk 0:01:23]}  Kf7 {[%clk 0:02:20]} 32. f3 {[%clk 0:01:11]}  Ke8 {[%clk 0:02:18]} 33. e4 {[%clk 0:01:05]}  Kd7 {[%clk 0:02:14]} 34. g4 {[%clk 0:00:50]}  h5 {[%clk 0:02:14]} 35. h3 {[%clk 0:00:49]}  f5 {[%clk 0:02:13]} 36. exd5 {[%clk 0:00:34]}  exd5 {[%clk 0:02:12]} 37. gxh5 {[%clk 0:00:23]}  gxh5 {[%clk 0:02:12]} 38. a4 {[%clk 0:00:23]}  Kc6 {[%clk 0:02:09]} 39. Be7 {[%clk 0:00:22]}  Bh6 {[%clk 0:02:08]} 40. Bf6 {[%clk 0:00:20]}  b5 {[%clk 0:02:08]} 41. Be7 {[%clk 0:00:19]}  Bf4 {[%clk 0:02:07]} 42. Kc3 {[%clk 0:00:18]}  Bg3 {[%clk 0:02:01]} 43. Bf8 {[%clk 0:00:18]}  Be1+ {[%clk 0:01:56]} 44. Kd3 {[%clk 0:00:18]}  Kd7 {[%clk 0:01:55]} 45. Ke3 {[%clk 0:00:18]}  Ke6 {[%clk 0:01:54]} 46. Kf4 {[%clk 0:00:17]}  Bd2+ {[%clk 0:01:54]} 47. Kg3 {[%clk 0:00:17]}  Be3 {[%clk 0:01:51]} 48. Kh4 {[%clk 0:00:16]}  Kf7 {[%clk 0:01:47]} 49. Bc5 {[%clk 0:00:16]}  Kg6 {[%clk 0:01:47]} 50. Kg3 {[%clk 0:00:16]}  Kg5 {[%clk 0:01:42]} 51. h4+ {[%clk 0:00:16]}  Kg6 {[%clk 0:01:42]} 52. f4 {[%clk 0:00:16]}  bxa4 {[%clk 0:01:41]} 53. bxa4 {[%clk 0:00:16]}  Kf7 {[%clk 0:01:39]} 54. Kf3 {[%clk 0:00:17]}  Bd2 {[%clk 0:01:39]} 55. Bd6 {[%clk 0:00:15]}  Ke6 {[%clk 0:01:39]} 56. Be5 {[%clk 0:00:16]}  Be1 {[%clk 0:01:39]} 57. Ke2 {[%clk 0:00:15]}  Bxh4 {[%clk 0:01:39]} 58. Kf3 {[%clk 0:00:15]}  Be7 {[%clk 0:01:38]} 59. Kg2 {[%clk 0:00:15]}  Kd7 {[%clk 0:01:38]} 60. Kh3 {[%clk 0:00:16]}  Kc6 {[%clk 0:01:38]} 61. Bg7 {[%clk 0:00:17]}  Kb6 {[%clk 0:01:38]} 62. Bh6 {[%clk 0:00:18]}  Bf6 {[%clk 0:01:35]} 63. Bg5 {[%clk 0:00:19]}  Bxd4 {[%clk 0:01:35]} 64. Kh4 {[%clk 0:00:19]}  Be3 {[%clk 0:01:35]} 65. Kxh5 {[%clk 0:00:20]}  d4 {[%clk 0:01:36]} 66. Kg6 {[%clk 0:00:20]}  d3 {[%clk 0:01:35]} 67. Bd8+ {[%clk 0:00:18]}  Kc5 {[%clk 0:01:32]} 68. Ba5 {[%clk 0:00:18]}  Bxf4 {[%clk 0:01:31]} 69. Kxf5 {[%clk 0:00:18]}  d2 {[%clk 0:01:32]} 70. Bxd2 {[%clk 0:00:18]}  Bxd2 {[%clk 0:01:32]} 71. Ke4 {[%clk 0:00:18]}  Kc4 {[%clk 0:01:33]} 72. a5 {[%clk 0:00:18]}  Bxa5 {[%clk 0:01:33]} 73. Ke3 {[%clk 0:00:18]}  Bc3 {[%clk 0:01:32]} 74. Ke2 {[%clk 0:00:19]}  Kb3 {[%clk 0:01:33]} 75. Kd1 {[%clk 0:00:20]}  Kb2 {[%clk 0:01:33]} 0-1


[Site "https://www.chess.com"]

[Event "Titled Tuesday Blitz January 31 Late 2023"]
[White "Wieczorek, Oskar"]
[Black "Przybylski, Wojciech"]
[WhiteFideId "1133950"]
[BlackFideId "1117599"]
[WhiteElo "2512"]
[BlackElo "2321"]
[Result "1-0"]
[Round "04"]
[TimeControl "180+2"]
[Date "2023.01.31"]
[WhiteClock "0:00:13"]
[BlackClock "0:00:03"]

1. e4 {[%clk 0:03:00]}  e5 {[%clk 0:02:59]} 2. Nf3 {[%clk 0:03:01]}  Nf6 {[%clk 0:02:59]} 3. Nc3 {[%clk 0:03:01]}  Nc6 {[%clk 0:02:58]} 4. h3 {[%clk 0:03:02]}  Be7 {[%clk 0:02:58]} 5. d4 {[%clk 0:03:00]}  exd4 {[%clk 0:02:58]} 6. Nxd4 {[%clk 0:03:01]}  O-O {[%clk 0:02:55]} 7. Nxc6 {[%clk 0:03:00]}  bxc6 {[%clk 0:02:53]} 8. e5 {[%clk 0:03:01]}  Ne8 {[%clk 0:02:54]} 9. Bd3 {[%clk 0:03:02]}  d5 {[%clk 0:02:50]} 10. O-O {[%clk 0:02:55]}  Bc5 {[%clk 0:02:45]} 11. Na4 {[%clk 0:02:44]}  Be7 {[%clk 0:02:36]} 12. Bf4 {[%clk 0:02:35]}  Rb8 {[%clk 0:02:24]} 13. b3 {[%clk 0:02:32]}  f6 {[%clk 0:02:23]} 14. Qe2 {[%clk 0:02:27]}  fxe5 {[%clk 0:02:17]} 15. Bxe5 {[%clk 0:02:28]}  Nf6 {[%clk 0:02:17]} 16. Rae1 {[%clk 0:02:21]}  Bb4 {[%clk 0:02:06]} 17. c3 {[%clk 0:02:18]}  Bd6 {[%clk 0:02:06]} 18. f4 {[%clk 0:02:11]}  c5 {[%clk 0:01:48]} 19. c4 {[%clk 0:02:04]}  Bb7 {[%clk 0:01:25]} 20. Qf2 {[%clk 0:01:50]}  Ne4 {[%clk 0:01:17]} 21. Bxe4 {[%clk 0:01:45]}  dxe4 {[%clk 0:01:17]} 22. Qg3 {[%clk 0:01:25]}  Qe7 {[%clk 0:01:16]} 23. Bxd6 {[%clk 0:01:07]}  cxd6 {[%clk 0:01:15]} 24. Nc3 {[%clk 0:01:07]}  Rbe8 {[%clk 0:01:11]} 25. Nd1 {[%clk 0:01:07]}  d5 {[%clk 0:01:03]} 26. cxd5 {[%clk 0:01:07]}  Bxd5 {[%clk 0:00:59]} 27. Ne3 {[%clk 0:01:07]}  Bb7 {[%clk 0:00:57]} 28. f5 {[%clk 0:01:04]}  Qe5 {[%clk 0:00:51]} 29. Qxe5 {[%clk 0:00:52]}  Rxe5 {[%clk 0:00:50]} 30. Rf2 {[%clk 0:00:34]}  Rd8 {[%clk 0:00:45]} 31. g4 {[%clk 0:00:31]}  Rd3 {[%clk 0:00:43]} 32. Kg2 {[%clk 0:00:32]}  h6 {[%clk 0:00:39]} 33. Kg3 {[%clk 0:00:31]}  Re8 {[%clk 0:00:26]} 34. h4 {[%clk 0:00:29]}  a5 {[%clk 0:00:24]} 35. Rc2 {[%clk 0:00:25]}  Rc8 {[%clk 0:00:21]} 36. Kf4 {[%clk 0:00:21]}  Kf7 {[%clk 0:00:17]} 37. Rec1 {[%clk 0:00:18]}  c4 {[%clk 0:00:07]} 38. Rxc4 {[%clk 0:00:18]}  Rxc4 {[%clk 0:00:05]} 39. Rxc4 {[%clk 0:00:18]}  Ba6 {[%clk 0:00:05]} 40. Rc7+ {[%clk 0:00:18]}  Kf8 {[%clk 0:00:05]} 41. g5 {[%clk 0:00:18]}  hxg5+ {[%clk 0:00:05]} 42. hxg5 {[%clk 0:00:19]}  Rd2 {[%clk 0:00:05]} 43. g6 {[%clk 0:00:18]}  Rf2+ {[%clk 0:00:04]} 44. Ke5 {[%clk 0:00:18]}  Rf3 {[%clk 0:00:04]} 45. Nd5 {[%clk 0:00:18]}  Ke8 {[%clk 0:00:03]} 46. Rxg7 {[%clk 0:00:18]}  Bc8 {[%clk 0:00:04]} 47. Rg8+ {[%clk 0:00:17]}  Kd7 {[%clk 0:00:04]} 48. Kxe4 {[%clk 0:00:14]}  Rf1 {[%clk 0:00:03]} 49. Nb6+ {[%clk 0:00:14]}  Ke7 {[%clk 0:00:03]} 50. Rxc8 {[%clk 0:00:14]}  Re1+ {[%clk 0:00:03]} 51. Kf4 {[%clk 0:00:13]}  Rf1+ {[%clk 0:00:03]} 52. Ke5 {[%clk 0:00:14]}  Re1+ {[%clk 0:00:04]} 53. Kd4 {[%clk 0:00:13]}  Kf6 {[%clk 0:00:03]} 54. Nd5+ {[%clk 0:00:12]}  Kg5 {[%clk 0:00:03]} 55. g7 {[%clk 0:00:12]}  Rd1+ {[%clk 0:00:03]} 56. Ke5 {[%clk 0:00:13]}  Re1+ {[%clk 0:00:03]} 57. Kd6 {[%clk 0:00:13]} 1-0


[Site "https://www.chess.com"]

[Event "Titled Tuesday Blitz January 31 Late 2023"]
[White "Costachi, Mihnea"]
[Black "Donskov, Anatoly"]
[WhiteFideId "1217518"]
[BlackFideId "24143413"]
[WhiteElo "2476"]
[BlackElo "2279"]
[Result "0-1"]
[Round "04"]
[TimeControl "180+2"]
[Date "2023.01.31"]
[WhiteClock "0:01:41"]
[BlackClock "0:00:39"]

1. Nc3 {[%clk 0:03:00]}  c5 {[%clk 0:02:59]} 2. g3 {[%clk 0:02:56]}  e6 {[%clk 0:02:59]} 3. Bg2 {[%clk 0:02:57]}  Nc6 {[%clk 0:02:59]} 4. d3 {[%clk 0:02:58]}  d5 {[%clk 0:02:56]} 5. Nf3 {[%clk 0:02:57]}  Nf6 {[%clk 0:02:30]} 6. O-O {[%clk 0:02:56]}  d4 {[%clk 0:02:21]} 7. Nb1 {[%clk 0:02:55]}  Be7 {[%clk 0:02:12]} 8. e4 {[%clk 0:02:55]}  O-O {[%clk 0:02:08]} 9. a4 {[%clk 0:02:55]}  b6 {[%clk 0:02:05]} 10. Ne1 {[%clk 0:02:53]}  Bb7 {[%clk 0:02:04]} 11. f4 {[%clk 0:02:53]}  Nd7 {[%clk 0:01:58]} 12. Nf3 {[%clk 0:02:50]}  f5 {[%clk 0:01:51]} 13. e5 {[%clk 0:02:50]}  Nb4 {[%clk 0:01:48]} 14. Nxd4 {[%clk 0:02:36]}  Bxg2 {[%clk 0:01:09]} 15. Nxe6 {[%clk 0:02:35]}  Qc8 {[%clk 0:00:57]} 16. Nxf8 {[%clk 0:02:34]}  Bxf1 {[%clk 0:00:47]} 17. Nxd7 {[%clk 0:02:34]}  Bh3 {[%clk 0:00:46]} 18. e6 {[%clk 0:02:26]}  Qc6 {[%clk 0:00:46]} 19. Qe2 {[%clk 0:02:27]}  Nxc2 {[%clk 0:00:42]} 20. Qxc2 {[%clk 0:02:26]}  Qf3 {[%clk 0:00:42]} 21. Qf2 {[%clk 0:01:41]}  Qd1+ {[%clk 0:00:41]} 22. Qf1 {[%clk 0:01:41]}  Qxf1# {[%clk 0:00:39]} 0-1


[Site "https://www.chess.com"]

[Event "Titled Tuesday Blitz January 31 Late 2023"]
[White "Danielyan, Vahe"]
[Black "Petkov, Momchil"]
[WhiteFideId "13304828"]
[BlackFideId "2921642"]
[WhiteElo "2346"]
[BlackElo "2522"]
[Result "1-0"]
[Round "04"]
[TimeControl "180+2"]
[Date "2023.01.31"]
[WhiteClock "0:00:25"]
[BlackClock "0:00:03"]

1. e4 {[%clk 0:02:55]}  c5 {[%clk 0:02:59]} 2. Nc3 {[%clk 0:02:54]}  e6 {[%clk 0:03:00]} 3. Nf3 {[%clk 0:02:53]}  a6 {[%clk 0:03:00]} 4. d4 {[%clk 0:02:51]}  cxd4 {[%clk 0:03:01]} 5. Nxd4 {[%clk 0:02:52]}  b5 {[%clk 0:03:02]} 6. g3 {[%clk 0:02:52]}  Bb7 {[%clk 0:03:02]} 7. Bg2 {[%clk 0:02:52]}  Nf6 {[%clk 0:03:03]} 8. a3 {[%clk 0:02:52]}  Qc7 {[%clk 0:03:03]} 9. O-O {[%clk 0:02:52]}  Nc6 {[%clk 0:03:03]} 10. Nxc6 {[%clk 0:02:52]}  Bxc6 {[%clk 0:03:04]} 11. Re1 {[%clk 0:02:52]}  Bc5 {[%clk 0:02:53]} 12. a4 {[%clk 0:02:50]}  b4 {[%clk 0:02:53]} 13. Nd5 {[%clk 0:02:50]}  Qa7 {[%clk 0:02:40]} 14. Nxf6+ {[%clk 0:02:45]}  gxf6 {[%clk 0:02:40]} 15. Be3 {[%clk 0:02:42]}  Bxe3 {[%clk 0:02:37]} 16. Rxe3 {[%clk 0:02:43]}  Qc5 {[%clk 0:02:34]} 17. Qd2 {[%clk 0:02:27]}  h5 {[%clk 0:02:33]} 18. Rae1 {[%clk 0:02:25]}  h4 {[%clk 0:02:32]} 19. g4 {[%clk 0:02:22]}  Ke7 {[%clk 0:02:30]} 20. h3 {[%clk 0:02:22]}  Rac8 {[%clk 0:02:24]} 21. b3 {[%clk 0:02:09]}  a5 {[%clk 0:02:19]} 22. Rd3 {[%clk 0:02:07]}  Rhd8 {[%clk 0:02:00]} 23. e5 {[%clk 0:02:06]}  Bxg2 {[%clk 0:01:58]} 24. exf6+ {[%clk 0:02:06]}  Kxf6 {[%clk 0:01:58]} 25. Qh6+ {[%clk 0:02:05]}  Ke7 {[%clk 0:01:48]} 26. Qxh4+ {[%clk 0:02:06]}  Ke8 {[%clk 0:01:37]} 27. Kxg2 {[%clk 0:02:05]}  Qxc2 {[%clk 0:01:26]} 28. Rf3 {[%clk 0:02:01]}  Qg6 {[%clk 0:01:07]} 29. Re5 {[%clk 0:02:01]}  d6 {[%clk 0:00:48]} 30. Rg5 {[%clk 0:02:00]}  Qe4 {[%clk 0:00:48]} 31. Qh8+ {[%clk 0:01:23]}  Kd7 {[%clk 0:00:44]} 32. Qf6 {[%clk 0:01:24]}  Rf8 {[%clk 0:00:30]} 33. Rxa5 {[%clk 0:01:21]}  Rc3 {[%clk 0:00:29]} 34. Ra7+ {[%clk 0:01:21]}  Kc6 {[%clk 0:00:30]} 35. Ra6+ {[%clk 0:01:15]}  Kc5 {[%clk 0:00:23]} 36. Kg3 {[%clk 0:00:39]}  Rxf3+ {[%clk 0:00:20]} 37. Qxf3 {[%clk 0:00:40]}  Qxf3+ {[%clk 0:00:20]} 38. Kxf3 {[%clk 0:00:40]}  d5 {[%clk 0:00:18]} 39. Ra7 {[%clk 0:00:37]}  Kd4 {[%clk 0:00:19]} 40. Rc7 {[%clk 0:00:33]}  Kd3 {[%clk 0:00:14]} 41. h4 {[%clk 0:00:33]}  e5 {[%clk 0:00:14]} 42. h5 {[%clk 0:00:34]}  f5 {[%clk 0:00:11]} 43. g5 {[%clk 0:00:33]}  f4 {[%clk 0:00:12]} 44. g6 {[%clk 0:00:33]}  e4+ {[%clk 0:00:13]} 45. Kg4 {[%clk 0:00:31]}  e3 {[%clk 0:00:13]} 46. fxe3 {[%clk 0:00:32]}  fxe3 {[%clk 0:00:14]} 47. g7 {[%clk 0:00:31]}  Re8 {[%clk 0:00:14]} 48. h6 {[%clk 0:00:29]}  e2 {[%clk 0:00:13]} 49. Rc1 {[%clk 0:00:29]}  Kd2 {[%clk 0:00:11]} 50. Ra1 {[%clk 0:00:29]}  e1=Q {[%clk 0:00:10]} 51. Rxe1 {[%clk 0:00:30]}  Rxe1 {[%clk 0:00:11]} 52. Kf3 {[%clk 0:00:28]}  Rg1 {[%clk 0:00:10]} 53. h7 {[%clk 0:00:26]}  Rxg7 {[%clk 0:00:10]} 54. h8=Q {[%clk 0:00:27]}  Rf7+ {[%clk 0:00:11]} 55. Kg2 {[%clk 0:00:27]}  Kc2 {[%clk 0:00:06]} 56. Qd4 {[%clk 0:00:26]}  Rf5 {[%clk 0:00:03]} 57. a5 {[%clk 0:00:25]}  Rg5+ {[%clk 0:00:03]} 58. Kf3 {[%clk 0:00:25]}  Rf5+ {[%clk 0:00:03]} 59. Ke3 {[%clk 0:00:25]}  Kxb3 {[%clk 0:00:03]} 60. a6 {[%clk 0:00:25]}  Rf7 {[%clk 0:00:03]} 61. Qxd5+ {[%clk 0:00:25]} 1-0


[Site "https://www.chess.com"]

[Event "Titled Tuesday Blitz January 31 Late 2023"]
[White "Nazari, Arad"]
[Black "Tworuszka, Michal"]
[WhiteFideId "12577324"]
[BlackFideId "1117858"]
[WhiteElo "2367"]
[BlackElo "2260"]
[Result "0-1"]
[Round "04"]
[TimeControl "180+2"]
[Date "2023.01.31"]
[WhiteClock "0:00:02"]
[BlackClock "0:00:07"]

1. e4 {[%clk 0:03:00]}  c5 {[%clk 0:02:59]} 2. Nf3 {[%clk 0:03:00]}  d6 {[%clk 0:02:59]} 3. Bb5+ {[%clk 0:03:01]}  Bd7 {[%clk 0:02:56]} 4. Bxd7+ {[%clk 0:03:01]}  Nxd7 {[%clk 0:02:56]} 5. O-O {[%clk 0:03:02]}  Ngf6 {[%clk 0:02:56]} 6. Qe2 {[%clk 0:03:02]}  e6 {[%clk 0:02:55]} 7. c3 {[%clk 0:03:03]}  Be7 {[%clk 0:02:55]} 8. d4 {[%clk 0:03:04]}  cxd4 {[%clk 0:02:56]} 9. cxd4 {[%clk 0:03:05]}  d5 {[%clk 0:02:56]} 10. Nc3 {[%clk 0:03:06]}  dxe4 {[%clk 0:02:55]} 11. Nxe4 {[%clk 0:03:06]}  Nxe4 {[%clk 0:02:56]} 12. Qxe4 {[%clk 0:03:07]}  Qb6 {[%clk 0:02:52]} 13. Qg4 {[%clk 0:03:00]}  Bf6 {[%clk 0:02:39]} 14. d5 {[%clk 0:02:52]}  O-O {[%clk 0:02:27]} 15. Be3 {[%clk 0:02:35]}  Qa6 {[%clk 0:02:21]} 16. dxe6 {[%clk 0:02:34]}  Qxe6 {[%clk 0:02:17]} 17. Qxe6 {[%clk 0:02:33]}  fxe6 {[%clk 0:02:17]} 18. Rad1 {[%clk 0:02:33]}  Nb6 {[%clk 0:02:13]} 19. b3 {[%clk 0:02:29]}  Nd5 {[%clk 0:02:05]} 20. Rfe1 {[%clk 0:02:28]}  Rfd8 {[%clk 0:01:57]} 21. Bd4 {[%clk 0:02:23]}  Kf7 {[%clk 0:01:48]} 22. Rc1 {[%clk 0:02:07]}  Rac8 {[%clk 0:01:42]} 23. Bxa7 {[%clk 0:02:03]}  Ra8 {[%clk 0:01:38]} 24. Bd4 {[%clk 0:01:54]}  Rxa2 {[%clk 0:01:38]} 25. g3 {[%clk 0:01:33]}  Rd7 {[%clk 0:01:37]} 26. Red1 {[%clk 0:01:25]}  Nb4 {[%clk 0:01:32]} 27. Bxf6 {[%clk 0:01:24]}  Rxd1+ {[%clk 0:01:31]} 28. Rxd1 {[%clk 0:01:25]}  Kxf6 {[%clk 0:01:27]} 29. Rd7 {[%clk 0:01:24]}  Rb2 {[%clk 0:01:22]} 30. Rxb7 {[%clk 0:01:20]}  Nd3 {[%clk 0:01:21]} 31. Rd7 {[%clk 0:01:11]}  Nxf2 {[%clk 0:01:20]} 32. Nd2 {[%clk 0:01:12]}  Ng4 {[%clk 0:01:15]} 33. Rd4 {[%clk 0:00:58]}  h5 {[%clk 0:01:12]} 34. h3 {[%clk 0:00:57]}  Ne3 {[%clk 0:01:11]} 35. Kf2 {[%clk 0:00:55]}  Nf5 {[%clk 0:01:09]} 36. Rd3 {[%clk 0:00:52]}  g5 {[%clk 0:01:08]} 37. Kf3 {[%clk 0:00:50]}  Kg6 {[%clk 0:01:02]} 38. g4 {[%clk 0:00:42]}  hxg4+ {[%clk 0:01:01]} 39. hxg4 {[%clk 0:00:43]}  Ne7 {[%clk 0:01:01]} 40. Ke4 {[%clk 0:00:37]}  Nd5 {[%clk 0:00:52]} 41. Ke5 {[%clk 0:00:37]}  Nf6 {[%clk 0:00:52]} 42. Kxe6 {[%clk 0:00:24]}  Nxg4 {[%clk 0:00:52]} 43. Nc4 {[%clk 0:00:24]}  Re2+ {[%clk 0:00:50]} 44. Kd6 {[%clk 0:00:22]}  Nf6 {[%clk 0:00:50]} 45. b4 {[%clk 0:00:20]}  g4 {[%clk 0:00:48]} 46. b5 {[%clk 0:00:20]}  Kf5 {[%clk 0:00:40]} 47. b6 {[%clk 0:00:19]}  Re6+ {[%clk 0:00:37]} 48. Kc7 {[%clk 0:00:16]}  Re7+ {[%clk 0:00:33]} 49. Kc6 {[%clk 0:00:15]}  Ne4 {[%clk 0:00:14]} 50. b7 {[%clk 0:00:05]}  Re8 {[%clk 0:00:14]} 51. Rd5+ {[%clk 0:00:05]}  Kf4 {[%clk 0:00:14]} 52. Kc7 {[%clk 0:00:05]}  g3 {[%clk 0:00:14]} 53. Nb6 {[%clk 0:00:04]}  g2 {[%clk 0:00:13]} 54. Rd1 {[%clk 0:00:04]}  Nc5 {[%clk 0:00:11]} 55. Nd5+ {[%clk 0:00:01]}  Kg3 {[%clk 0:00:09]} 56. Nf6 {[%clk 0:00:02]}  Rf8 {[%clk 0:00:07]} 0-1


[Site "https://www.chess.com"]

[Event "Titled Tuesday Blitz January 31 Late 2023"]
[White "Battlecruiser_Operational"]
[Black "Nigmatov, Ortik"]
[BlackFideId "14202131"]
[WhiteElo "2419"]
[BlackElo "2438"]
[Result "0-1"]
[Round "04"]
[TimeControl "180+2"]
[Date "2023.01.31"]
[WhiteClock "0:00:01"]
[BlackClock "0:00:18"]

1. d4 {[%clk 0:02:59]}  Nf6 {[%clk 0:02:58]} 2. c4 {[%clk 0:02:58]}  g6 {[%clk 0:02:57]} 3. Nc3 {[%clk 0:02:58]}  d5 {[%clk 0:02:58]} 4. cxd5 {[%clk 0:02:59]}  Nxd5 {[%clk 0:02:58]} 5. e4 {[%clk 0:02:59]}  Nxc3 {[%clk 0:02:59]} 6. bxc3 {[%clk 0:03:00]}  Bg7 {[%clk 0:02:59]} 7. Bc4 {[%clk 0:03:00]}  O-O {[%clk 0:02:59]} 8. Ne2 {[%clk 0:03:00]}  c5 {[%clk 0:02:59]} 9. O-O {[%clk 0:02:59]}  Nc6 {[%clk 0:03:00]} 10. Be3 {[%clk 0:02:59]}  e6 {[%clk 0:03:00]} 11. Rb1 {[%clk 0:02:48]}  Na5 {[%clk 0:02:55]} 12. Bd3 {[%clk 0:02:46]}  cxd4 {[%clk 0:02:53]} 13. cxd4 {[%clk 0:02:45]}  b6 {[%clk 0:02:53]} 14. h4 {[%clk 0:02:42]}  Qxh4 {[%clk 0:02:48]} 15. Qd2 {[%clk 0:02:28]}  Qe7 {[%clk 0:02:46]} 16. e5 {[%clk 0:02:09]}  Bb7 {[%clk 0:02:44]} 17. Rfd1 {[%clk 0:02:03]}  Rac8 {[%clk 0:02:42]} 18. Bg5 {[%clk 0:02:02]}  f6 {[%clk 0:02:42]} 19. exf6 {[%clk 0:02:03]}  Bxf6 {[%clk 0:02:42]} 20. Bh6 {[%clk 0:02:03]}  Rf7 {[%clk 0:02:40]} 21. Qe3 {[%clk 0:01:48]}  Nc4 {[%clk 0:02:29]} 22. Bxc4 {[%clk 0:01:47]}  Rxc4 {[%clk 0:02:30]} 23. Nf4 {[%clk 0:01:42]}  Bg5 {[%clk 0:02:07]} 24. Nxg6 {[%clk 0:01:18]}  Bxe3 {[%clk 0:01:43]} 25. Nxe7+ {[%clk 0:01:17]}  Rxe7 {[%clk 0:01:44]} 26. Bxe3 {[%clk 0:01:13]}  Rg7 {[%clk 0:01:44]} 27. g3 {[%clk 0:01:08]}  Bd5 {[%clk 0:01:43]} 28. Rb2 {[%clk 0:00:53]}  h5 {[%clk 0:01:36]} 29. Kf1 {[%clk 0:00:51]}  h4 {[%clk 0:01:26]} 30. gxh4 {[%clk 0:00:49]}  Rg4 {[%clk 0:01:26]} 31. Ke2 {[%clk 0:00:46]}  Rxh4 {[%clk 0:01:23]} 32. Rg1+ {[%clk 0:00:43]}  Kf7 {[%clk 0:01:24]} 33. Kd3 {[%clk 0:00:38]}  Rh3 {[%clk 0:01:19]} 34. Rg4 {[%clk 0:00:31]}  Rh1 {[%clk 0:01:18]} 35. Rf4+ {[%clk 0:00:19]}  Ke8 {[%clk 0:01:18]} 36. Rg4 {[%clk 0:00:19]}  Rc7 {[%clk 0:01:18]} 37. Rg8+ {[%clk 0:00:18]}  Kf7 {[%clk 0:01:18]} 38. Rb8 {[%clk 0:00:17]}  Bf3 {[%clk 0:01:17]} 39. Bf4 {[%clk 0:00:16]}  Rd7 {[%clk 0:01:12]} 40. Be5 {[%clk 0:00:14]}  Rh3 {[%clk 0:01:09]} 41. Kd2 {[%clk 0:00:14]}  Be4 {[%clk 0:01:09]} 42. Rb3 {[%clk 0:00:13]}  Rh5 {[%clk 0:01:07]} 43. Ke3 {[%clk 0:00:13]}  Bd5 {[%clk 0:01:05]} 44. Rb2 {[%clk 0:00:11]}  Bc4 {[%clk 0:01:02]} 45. f3 {[%clk 0:00:10]}  Rh7 {[%clk 0:00:25]} 46. Rg2 {[%clk 0:00:10]}  b5 {[%clk 0:00:23]} 47. a3 {[%clk 0:00:10]}  a5 {[%clk 0:00:23]} 48. Rgg8 {[%clk 0:00:09]}  Ra7 {[%clk 0:00:20]} 49. Rgf8+ {[%clk 0:00:09]}  Ke7 {[%clk 0:00:21]} 50. Rbe8+ {[%clk 0:00:09]}  Kd7 {[%clk 0:00:21]} 51. Rd8+ {[%clk 0:00:10]}  Kc6 {[%clk 0:00:21]} 52. Rd6+ {[%clk 0:00:10]}  Kb7 {[%clk 0:00:20]} 53. Rfd8 {[%clk 0:00:10]}  Bd5 {[%clk 0:00:17]} 54. R8d7+ {[%clk 0:00:09]}  Kc8 {[%clk 0:00:15]} 55. Rxh7 {[%clk 0:00:08]}  Rxh7 {[%clk 0:00:15]} 56. Ra6 {[%clk 0:00:08]}  a4 {[%clk 0:00:15]} 57. f4 {[%clk 0:00:07]}  Rh3+ {[%clk 0:00:15]} 58. Kf2 {[%clk 0:00:07]}  Rxa3 {[%clk 0:00:16]} 59. Rb6 {[%clk 0:00:07]}  Bc4 {[%clk 0:00:16]} 60. Rb8+ {[%clk 0:00:04]}  Kd7 {[%clk 0:00:16]} 61. Rb7+ {[%clk 0:00:05]}  Kc6 {[%clk 0:00:17]} 62. Rc7+ {[%clk 0:00:05]}  Kd5 {[%clk 0:00:17]} 63. Kg2 {[%clk 0:00:04]}  Ke4 {[%clk 0:00:17]} 64. Kf2 {[%clk 0:00:03]}  Rb3 {[%clk 0:00:17]} 65. Ra7 {[%clk 0:00:03]}  a3 {[%clk 0:00:18]} 66. Bd6 {[%clk 0:00:02]}  Rb2+ {[%clk 0:00:17]} 67. Kg3 {[%clk 0:00:02]}  a2 {[%clk 0:00:18]} 68. Bc5 {[%clk 0:00:01]}  Rb1 {[%clk 0:00:18]} 0-1


[Site "https://www.chess.com"]